fUST/lending_fUST_20240501
["ID","MTS","AMOUNT","RATE_DAILY","PERIOD"]
[325013033,1714504252652,-560.52,0.00033972,7]
[325013036,1714504252662,-500.0,0.00033972,7]
[325013037,1714504252671,-500.0,0.00033972,7]
[325013040,1714504252680,-500.0,0.00033972,7]
[325013041,1714504252690,-2317.85,0.00033972,7]
[325013043,1714504252699,-500.0,0.00033972,7]
[325013045,1714504252709,-500.0,0.00033972,7]
[325013048,1714504252720,-500.0,0.00033972,7]
[325013049,1714504252730,-500.0,0.00033972,7]
[325013052,1714504252739,-500.0,0.00033972,7]
[325013053,1714504252749,-500.0,0.00033972,7]
[325013056,1714504252761,-637.11,0.00033972,7]
[325013058,1714504252771,-500.0,0.00033972,7]
[325013060,1714504252783,-500.0,0.00033972,7]
[325013062,1714504252793,-500.0,0.00033972,7]
[325013063,1714504252802,-500.0,0.00033972,7]
[325013065,1714504252811,-466.43678541,0.00034,4]
[325013066,1714504252820,-500.0,0.00034246,7]
[325013067,1714504252830,-500.0,0.00034246,7]
[325013068,1714504252839,-500.0,0.00034246,7]
[325013069,1714504252848,-500.0,0.00034246,7]
[325013070,1714504252857,-500.0,0.00034246,7]
[325013071,1714504252867,-500.0,0.00034246,7]
[325013072,1714504252876,-646.66769105,0.00034246,7]
[325013073,1714504252886,-730.16,0.00034246,7]
[325013074,1714504252896,-500.0,0.00034246,7]
[325013075,1714504252905,-886.92,0.00034246,7]
[325013076,1714504252915,-560.1,0.00034246,7]
[325013077,1714504252929,-500.0,0.00034246,7]
[325013078,1714504252939,-500.0,0.00034246,7]
[325013079,1714504252948,-500.0,0.00034246,7]
[325013080,1714504252957,-500.0,0.00034246,7]
[325013081,1714504252967,-500.0,0.00034246,7]
[325013082,1714504252977,-500.0,0.00034246,7]
[325013083,1714504252987,-500.0,0.00034246,7]
[325013084,1714504252996,-500.0,0.00034246,7]
[325013085,1714504253006,-500.0,0.00034246,7]
[325013086,1714504253016,-500.0,0.00034246,7]
[325013087,1714504253028,-624.72,0.00034246,7]
[325013088,1714504253037,-500.0,0.00034246,7]
[325013089,1714504253046,-500.0,0.00034246,7]
[325013090,1714504253055,-500.0,0.00034246,7]
[325013091,1714504253064,-500.0,0.00034246,7]
[325013092,1714504253074,-500.0,0.00034246,7]
[325013093,1714504253084,-500.0,0.00034246,7]
[325013094,1714504253094,-500.0,0.00034246,7]
[325013095,1714504253105,-500.0,0.00034246,7]
[325013096,1714504253115,-500.0,0.00034246,7]
[325013097,1714504253126,-500.0,0.00034246,7]
[325013098,1714504253136,-500.0,0.00034246,7]
[325013099,1714504253145,-500.0,0.00034246,7]
[325013100,1714504253155,-500.0,0.00034246,7]
[325013101,1714504253164,-500.0,0.00034246,7]
[325013102,1714504253174,-604.5924382,0.00034246,7]
[325013103,1714504253183,-500.0,0.00034246,7]
[325013104,1714504253192,-566.67,0.00034246,7]
[325013105,1714504253202,-500.0,0.00034246,7]
[325013106,1714504253211,-510.48,0.00034246,7]
[325013107,1714504253221,-500.0,0.00034246,7]
[325013108,1714504253230,-279.2074271,0.00034246,7]
[325013109,1714504253239,-500.0,0.00034246,7]
[325013110,1714504253249,-712.4,0.00034246,7]
[325013111,1714504253258,-449.21891003,0.00034246,7]
[325013112,1714504253268,-500.0,0.00034246,7]
[325013113,1714504253279,-500.0,0.00034246,7]
[325013114,1714504253289,-500.0,0.00034246,7]
[325013115,1714504253298,-2234.6,0.00034246,7]
[325013116,1714504253308,-604.01,0.00034246,7]
[325013117,1714504253317,-500.0,0.00034246,7]
[325013118,1714504253326,-500.0,0.00034246,7]
[325013119,1714504253336,-572.86,0.00034246,7]
[325013120,1714504253345,-500.0,0.00034246,7]
[325013121,1714504253354,-500.0,0.00034246,7]
[325013122,1714504253363,-500.0,0.00034246,7]
[325013124,1714504253372,-316.75350134,0.00034246,7]
[325013126,1714504253382,-337.20716897,0.00034246,7]
[325013128,1714504253392,-1108.83,0.00034246,7]
[325013130,1714504253401,-500.0,0.00034246,7]
[325013132,1714504253411,-500.0,0.00034246,7]
[325013134,1714504253420,-500.0,0.00034246,7]
[325013136,1714504253429,-500.0,0.00034246,7]
[325013138,1714504253438,-500.0,0.00034246,7]
[325013140,1714504253447,-1236.29,0.00034246,7]
[325013142,1714504253457,-500.0,0.00034246,7]
[325013144,1714504253466,-734.06,0.00034246,7]
[325013146,1714504253476,-500.0,0.00034246,7]
[325013148,1714504253485,-509.18,0.00034246,7]
[325013150,1714504253495,-500.0,0.00034246,7]
[325013152,1714504253504,-583.24,0.00034246,7]
[325013154,1714504253513,-725.26,0.00034246,7]
[325013156,1714504253525,-890.23,0.00034246,7]
[325013158,1714504253535,-500.0,0.00034246,7]
[325013160,1714504253544,-500.0,0.00034246,7]
[325013162,1714504253554,-500.0,0.00034246,7]
[325013164,1714504253563,-500.0,0.00034246,7]
[325013166,1714504253572,-583.72,0.00034246,7]
[325013168,1714504253582,-500.0,0.00034246,7]
[325013170,1714504253591,-500.0,0.00034246,7]
[325013172,1714504253600,-560.52,0.00034246,7]
[325013174,1714504253610,-500.0,0.00034246,7]
[325013176,1714504253620,-500.0,0.00034246,7]
[325013178,1714504253629,-500.0,0.00034246,7]
[325013180,1714504253639,-2317.85,0.00034246,7]
[325013182,1714504253649,-500.0,0.00034246,7]
[325013184,1714504253658,-500.0,0.00034246,7]
[325013186,1714504253667,-500.0,0.00034246,7]
[325013188,1714504253676,-500.0,0.00034246,7]
[325013190,1714504253687,-500.0,0.00034246,7]
[325013192,1714504253696,-500.0,0.00034246,7]
[325013194,1714504253706,-637.11,0.00034246,7]
[325013196,1714504253715,-500.0,0.00034246,7]
[325013198,1714504253725,-500.0,0.00034246,7]
[325013200,1714504253734,-500.0,0.00034246,7]
[325013202,1714504253743,-500.0,0.00034246,7]
[325013204,1714504253753,-301.51757188,0.00034486,4]
[325013206,1714504253762,-1203.1,0.00034519,49]
[325013208,1714504253772,-500.0,0.0003452,7]
[325013210,1714504253782,-500.0,0.0003452,7]
[325013212,1714504253791,-590.62025934,0.0003452,7]
[325013214,1714504253800,-500.0,0.0003452,7]
[325013216,1714504253810,-500.0,0.0003452,7]
[325013218,1714504253819,-573.67192691,0.0003452,7]
[325013220,1714504253828,-730.16,0.0003452,7]
[325013222,1714504253837,-495.55003766,0.0003452,7]
[325013224,1714504253847,-886.92,0.0003452,7]
[325013226,1714504253856,-560.1,0.0003452,7]
[325013228,1714504253865,-500.0,0.0003452,7]
[325013230,1714504253874,-500.0,0.0003452,7]
[325013232,1714504253884,-500.0,0.0003452,7]
[325013234,1714504253893,-500.0,0.0003452,7]
[325013236,1714504253902,-500.0,0.0003452,7]
[325013238,1714504253912,-500.0,0.0003452,7]
[325013240,1714504253927,-500.0,0.0003452,7]
[325013242,1714504253936,-500.0,0.0003452,7]
[325013244,1714504253945,-180.95431423,0.0003452,7]
[325013246,1714504253954,-500.0,0.0003452,7]
[325013248,1714504253965,-624.72,0.0003452,7]
[325013250,1714504253974,-500.0,0.0003452,7]
[325013252,1714504253984,-640.39,0.0003452,7]
[325013254,1714504253993,-500.0,0.0003452,7]
[325013255,1714504254003,-318.31012775,0.0003452,7]
[325013256,1714504254013,-500.0,0.0003452,7]
[325013257,1714504254024,-500.0,0.0003452,7]
[325013258,1714504254033,-500.0,0.0003452,7]
[325013259,1714504254043,-500.0,0.0003452,7]
[325013260,1714504254051,-407.42177426,0.0003452,7]
[325013261,1714504254061,-500.0,0.0003452,7]
[325013262,1714504254070,-500.0,0.0003452,7]
[325013263,1714504254080,-566.67,0.0003452,7]
[325013264,1714504254089,-500.0,0.0003452,7]
[325013265,1714504254100,-510.48,0.0003452,7]
[325013266,1714504254109,-500.0,0.0003452,7]
[325013267,1714504254118,-712.4,0.0003452,7]
[325013269,1714504254128,-500.0,0.0003452,7]
[325013271,1714504254138,-500.0,0.0003452,7]
[325013273,1714504254147,-500.0,0.0003452,7]
[325013275,1714504254156,-2234.6,0.0003452,7]
[325013277,1714504254165,-604.01,0.0003452,7]
[325013279,1714504254175,-500.0,0.0003452,7]
[325013281,1714504254184,-500.0,0.0003452,7]
[325013283,1714504254193,-572.86,0.0003452,7]
[325013285,1714504254203,-500.0,0.0003452,7]
[325013287,1714504254213,-500.0,0.0003452,7]
[325013289,1714504254222,-362.28887226,0.0003452,7]
[325013291,1714504254231,-1108.83,0.0003452,7]
[325013293,1714504254241,-500.0,0.0003452,7]
[325013295,1714504254250,-500.0,0.0003452,7]
[325013297,1714504254260,-500.0,0.0003452,7]
[325013308,1714504254269,-500.0,0.0003452,7]
[325013311,1714504254366,-500.0,0.0003452,7]
[325013313,1714504254375,-1236.29,0.0003452,7]
[325013314,1714504254385,-195.29954388,0.0003452,7]
[325013317,1714504254396,-734.06,0.0003452,7]
[325013318,1714504254406,-500.0,0.0003452,7]
[325013320,1714504254416,-509.18,0.0003452,7]
[325013322,1714504254425,-500.0,0.0003452,7]
[325013324,1714504254434,-583.24,0.0003452,7]
[325013326,1714504254443,-725.26,0.0003452,7]
[325013328,1714504254452,-890.23,0.0003452,7]
[325013330,1714504254461,-500.0,0.0003452,7]
[325013332,1714504254471,-500.0,0.0003452,7]
[325013334,1714504254480,-500.0,0.0003452,7]
[325013336,1714504254489,-500.0,0.0003452,7]
[325013338,1714504254498,-583.72,0.0003452,7]
[325013340,1714504254507,-500.0,0.0003452,7]
[325013342,1714504254517,-500.0,0.0003452,7]
[325013344,1714504254529,-560.52,0.0003452,7]
[325013346,1714504254538,-500.0,0.0003452,7]
[325013348,1714504254547,-500.0,0.0003452,7]
[325013350,1714504254556,-228.75506271,0.0003452,7]
[325013352,1714504254565,-2317.85,0.0003452,7]
[325013354,1714504254574,-500.0,0.0003452,7]
[325013356,1714504254584,-500.0,0.0003452,7]
[325013358,1714504254593,-500.0,0.0003452,7]
[325013360,1714504254602,-500.0,0.0003452,7]
[325013362,1714504254611,-500.0,0.0003452,7]
[325013364,1714504254620,-500.0,0.0003452,7]
[325013366,1714504254630,-637.11,0.0003452,7]
[325013368,1714504254639,-500.0,0.0003452,7]
[325013370,1714504254647,-500.0,0.0003452,7]
[325013372,1714504254657,-500.0,0.0003452,7]
[325013374,1714504254667,-500.0,0.0003452,7]
[325013376,1714504254677,-629.7,0.0003458,14]
[325013378,1714504254686,-417.0,0.00034694,2]
[325013380,1714504254695,-150.0,0.00034697,2]
[325013382,1714504254704,-500.0,0.00034794,7]
[325013384,1714504254715,-500.0,0.00034794,7]
[325013386,1714504254724,-500.0,0.00034794,7]
[325013388,1714504254734,-383.88091648,0.00034794,7]
[325013390,1714504254743,-730.16,0.00034794,7]
[325013392,1714504254752,-886.92,0.00034794,7]
[325013394,1714504254763,-560.1,0.00034794,7]
[325013396,1714504254772,-500.0,0.00034794,7]
[325013398,1714504254782,-500.0,0.00034794,7]
[325013400,1714504254791,-500.0,0.00034794,7]
[325013402,1714504254800,-500.0,0.00034794,7]
[325013404,1714504254809,-500.0,0.00034794,7]
[325013406,1714504254818,-500.0,0.00034794,7]
[325013408,1714504254827,-500.0,0.00034794,7]
[325013410,1714504254836,-500.0,0.00034794,7]
[325013412,1714504254846,-500.0,0.00034794,7]
[325013414,1714504254855,-624.72,0.00034794,7]
[325013416,1714504254865,-500.0,0.00034794,7]
[325013418,1714504254874,-500.0,0.00034794,7]
[325013420,1714504254883,-500.0,0.00034794,7]
[325013422,1714504254892,-500.0,0.00034794,7]
[325013424,1714504254901,-500.0,0.00034794,7]
[325013426,1714504254911,-500.0,0.00034794,7]
[325013428,1714504254921,-500.0,0.00034794,7]
[325013430,1714504254932,-500.0,0.00034794,7]
[325013432,1714504254941,-566.67,0.00034794,7]
[325013434,1714504254949,-500.0,0.00034794,7]
[325013436,1714504254959,-510.48,0.00034794,7]
[325013438,1714504254969,-500.0,0.00034794,7]
[325013440,1714504254978,-712.4,0.00034794,7]
[325013442,1714504254988,-500.0,0.00034794,7]
[325013444,1714504254999,-500.0,0.00034794,7]
[325013446,1714504255008,-2234.6,0.00034794,7]
[325013448,1714504255018,-604.01,0.00034794,7]
[325013450,1714504255028,-500.0,0.00034794,7]
[325013452,1714504255037,-572.86,0.00034794,7]
[325013454,1714504255046,-500.0,0.00034794,7]
[325013456,1714504255056,-500.0,0.00034794,7]
[325013458,1714504255065,-1108.83,0.00034794,7]
[325013460,1714504255074,-500.0,0.00034794,7]
[325013462,1714504255083,-500.0,0.00034794,7]
[325013464,1714504255093,-500.0,0.00034794,7]
[325013466,1714504255102,-500.0,0.00034794,7]
[325013468,1714504255111,-1236.29,0.00034794,7]
[325013470,1714504255120,-734.06,0.00034794,7]
[325013472,1714504255129,-500.0,0.00034794,7]
[325013474,1714504255138,-509.18,0.00034794,7]
[325013476,1714504255147,-500.0,0.00034794,7]
[325013478,1714504255157,-583.24,0.00034794,7]
[325013480,1714504255167,-725.26,0.00034794,7]
[325013482,1714504255176,-890.23,0.00034794,7]
[325013484,1714504255185,-500.0,0.00034794,7]
[325013486,1714504255194,-500.0,0.00034794,7]
[325013488,1714504255203,-500.0,0.00034794,7]
[325013491,1714504255213,-500.0,0.00034794,7]
[325013493,1714504255222,-583.72,0.00034794,7]
[325013495,1714504255232,-500.0,0.00034794,7]
[325013497,1714504255241,-500.0,0.00034794,7]
[325013498,1714504255250,-500.0,0.00034794,7]
[325013500,1714504255259,-560.52,0.00034794,7]
[325013502,1714504255269,-500.0,0.00034794,7]
[325013504,1714504255280,-2317.85,0.00034794,7]
[325013506,1714504255289,-500.0,0.00034794,7]
[325013509,1714504255299,-500.0,0.00034794,7]
[325013510,1714504255308,-500.0,0.00034794,7]
[325013513,1714504255317,-500.0,0.00034794,7]
[325013515,1714504255327,-425.27009862,0.00034794,7]
[325013516,1714504255335,-637.11,0.00034794,7]
[325013518,1714504255345,-590.94119721,0.00034794,7]
[325013520,1714504255354,-500.0,0.00034794,7]
[325013523,1714504255363,-500.0,0.00034794,7]
[325013525,1714504255372,-357.53507479,0.00034794,7]
[325013527,1714504255381,-1000.0,0.000348,3]
[325013529,1714504255391,-173.024356,0.0003483,2]
[325013531,1714504255402,-854.20368441,0.00035,2]
[325013533,1714504255412,-214.63686045,0.00035,4]
[325013534,1714504255422,-5916.15000564,0.00035,4]
[325013537,1714504255432,-874.73567011,0.00035,30]
[325013538,1714504255442,-849.10028097,0.00035,30]
[325013540,1714504255451,-447.0489704,0.00035,10]
[325013542,1714504255460,-474.82426074,0.00035,30]
[325013543,1714504255470,-729.7450776,0.00035,4]
[325013545,1714504255479,-498.28881146,0.00035065,7]
[325013547,1714504255488,-603.03514377,0.00035066,7]
[325013548,1714504255497,-500.0,0.00035068,7]
[325013549,1714504255506,-500.0,0.00035068,7]
[325013550,1714504255515,-477.54665271,0.00035068,7]
[325013552,1714504255524,-730.16,0.00035068,7]
[325013553,1714504255533,-886.92,0.00035068,7]
[325013554,1714504255542,-560.1,0.00035068,7]
[325013555,1714504255551,-500.0,0.00035068,7]
[325013556,1714504255560,-500.0,0.00035068,7]
[325013557,1714504255570,-500.0,0.00035068,7]
[325013558,1714504255579,-500.0,0.00035068,7]
[325013559,1714504255588,-500.0,0.00035068,7]
[325013560,1714504255597,-494.47,0.00035068,7]
[325013561,1714504255606,-500.0,0.00035068,7]
[325013562,1714504255615,-500.0,0.00035068,7]
[325013563,1714504255625,-624.72,0.00035068,7]
[325013564,1714504255635,-195.10585035,0.00035068,7]
[325013565,1714504255645,-500.0,0.00035068,7]
[325013566,1714504255655,-500.0,0.00035068,7]
[325013567,1714504255665,-439.5911198,0.00035068,7]
[325013568,1714504255674,-500.0,0.00035068,7]
[325013569,1714504255683,-500.0,0.00035068,7]
[325013570,1714504255692,-500.0,0.00035068,7]
[325013571,1714504255701,-163.73844022,0.00035068,7]
[325013572,1714504255711,-566.67,0.00035068,7]
[325013573,1714504255720,-500.0,0.00035068,7]
[325013574,1714504255729,-510.48,0.00035068,7]
[325013575,1714504255738,-500.0,0.00035068,7]
[325013576,1714504255747,-712.4,0.00035068,7]
[325013577,1714504255757,-601.25055373,0.00035068,7]
[325013578,1714504255766,-591.7229864,0.00035068,7]
[325013579,1714504255776,-2234.6,0.00035068,7]
[325013580,1714504255786,-604.01,0.00035068,7]
[325013581,1714504255795,-500.0,0.00035068,7]
[325013582,1714504255804,-572.86,0.00035068,7]
[325013583,1714504255814,-500.0,0.00035068,7]
[325013584,1714504255823,-500.0,0.00035068,7]
[325013585,1714504255832,-1108.83,0.00035068,7]
[325013586,1714504255842,-500.0,0.00035068,7]
[325013588,1714504255851,-500.0,0.00035068,7]
[325013589,1714504255860,-500.0,0.00035068,7]
[325013590,1714504255870,-1236.29,0.00035068,7]
[325013591,1714504255879,-734.06,0.00035068,7]
[325013592,1714504255888,-500.0,0.00035068,7]
[325013593,1714504255897,-509.18,0.00035068,7]
[325013594,1714504255906,-500.0,0.00035068,7]
[325013595,1714504255919,-583.24,0.00035068,7]
[325013596,1714504255928,-725.26,0.00035068,7]
[325013597,1714504255938,-890.23,0.00035068,7]
[325013598,1714504255947,-500.0,0.00035068,7]
[325013599,1714504255958,-500.0,0.00035068,7]
[325013600,1714504255967,-500.0,0.00035068,7]
[325013601,1714504255976,-500.0,0.00035068,7]
[325013602,1714504255986,-583.72,0.00035068,7]
[325013603,1714504255997,-163.80760333,0.00035068,7]
[325013604,1714504256007,-500.0,0.00035068,7]
[325013605,1714504256016,-560.52,0.00035068,7]
[325013606,1714504256025,-500.0,0.00035068,7]
[325013607,1714504256035,-500.0,0.00035068,7]
[325013608,1714504256043,-2317.85,0.00035068,7]
[325013609,1714504256052,-500.0,0.00035068,7]
[325013610,1714504256062,-500.0,0.00035068,7]
[325013611,1714504256071,-176.21774259,0.00035068,7]
[325013612,1714504256081,-500.0,0.00035068,7]
[325013613,1714504256090,-637.11,0.00035068,7]
[325013615,1714504256099,-500.0,0.00035068,7]
[325013617,1714504256108,-500.0,0.00035068,7]
[325013619,1714504256118,-1203.1,0.00035341,52]
[325013621,1714504256127,-500.0,0.00035342,7]
[325013623,1714504256136,-500.0,0.00035342,7]
[325013625,1714504256146,-730.16,0.00035342,7]
[325013627,1714504256155,-886.92,0.00035342,7]
[325013629,1714504256164,-560.1,0.00035342,7]
[325013631,1714504256173,-508.27816758,0.00035342,7]
[325013633,1714504256182,-288.32178504,0.00035342,7]
[325013635,1714504256191,-500.0,0.00035342,7]
[325013637,1714504256200,-649.26783727,0.00035342,7]
[325013639,1714504256209,-346.63213298,0.00035342,7]
[325013641,1714504256218,-500.0,0.00035342,7]
[325013643,1714504256227,-500.0,0.00035342,7]
[325013645,1714504256236,-624.72,0.00035342,7]
[325013647,1714504256246,-500.0,0.00035342,7]
[325013649,1714504256255,-500.0,0.00035342,7]
[325013659,1714504256346,-500.0,0.00035342,7]
[325013661,1714504256356,-500.0,0.00035342,7]
[325013663,1714504256366,-500.0,0.00035342,7]
[325013664,1714504256375,-566.67,0.00035342,7]
[325013665,1714504256385,-500.0,0.00035342,7]
[325013666,1714504256394,-510.48,0.00035342,7]
[325013667,1714504256403,-500.0,0.00035342,7]
[325013668,1714504256412,-712.4,0.00035342,7]
[325013669,1714504256421,-2234.6,0.00035342,7]
[325013670,1714504256430,-604.01,0.00035342,7]
[325013671,1714504256439,-500.0,0.00035342,7]
[325013672,1714504256449,-572.86,0.00035342,7]
[325013673,1714504256458,-500.0,0.00035342,7]
[325013674,1714504256467,-500.0,0.00035342,7]
[325013675,1714504256476,-1108.83,0.00035342,7]
[325013676,1714504256485,-212.98372724,0.00035342,7]
[325013677,1714504256495,-636.64,0.00035342,7]
[325013678,1714504256504,-500.0,0.00035342,7]
[325013680,1714504256513,-1236.29,0.00035342,7]
[325013682,1714504256523,-734.06,0.00035342,7]
[325013684,1714504256534,-500.0,0.00035342,7]
[325013686,1714504256544,-509.18,0.00035342,7]
[325013688,1714504256554,-500.0,0.00035342,7]
[325013690,1714504256562,-583.24,0.00035342,7]
[325013693,1714504256571,-725.26,0.00035342,7]
[325013695,1714504256580,-890.23,0.00035342,7]
[325013697,1714504256589,-500.0,0.00035342,7]
[325013698,1714504256599,-410.07017119,0.00035342,7]
[325013701,1714504256608,-500.0,0.00035342,7]
[325013703,1714504256617,-500.0,0.00035342,7]
[325013705,1714504256627,-583.72,0.00035342,7]
[325013706,1714504256636,-500.0,0.00035342,7]
[325013709,1714504256646,-500.0,0.00035342,7]
[325013711,1714504256655,-560.52,0.00035342,7]
[325013712,1714504256664,-500.0,0.00035342,7]
[325013715,1714504256673,-2317.85,0.00035342,7]
[325013717,1714504256683,-500.0,0.00035342,7]
[325013718,1714504256692,-527.34,0.00035342,7]
[325013720,1714504256701,-500.0,0.00035342,7]
[325013722,1714504256710,-637.11,0.00035342,7]
[325013724,1714504256719,-339.17706372,0.00035342,7]
[325013726,1714504256729,-500.0,0.00035342,7]
[325013728,1714504256738,-629.7,0.00035544,14]
[325013730,1714504256747,-1006.0,0.00035558,5]
[325013732,1714504256755,-500.0,0.00035616,7]
[325013734,1714504256766,-260.83287979,0.00035616,7]
[325013737,1714504256776,-500.0,0.00035616,15]
[325013739,1714504256786,-730.16,0.00035616,7]
[325013741,1714504256796,-886.92,0.00035616,7]
[325013742,1714504256806,-560.1,0.00035616,7]
[325013745,1714504256815,-626.43062268,0.00035616,7]
[325013747,1714504256825,-500.0,0.00035616,7]
[325013748,1714504256835,-500.0,0.00035616,7]
[325013751,1714504256845,-624.72,0.00035616,7]
[325013752,1714504256855,-500.0,0.00035616,7]
[325013755,1714504256864,-500.0,0.00035616,7]
[325013756,1714504256873,-500.0,0.00035616,7]
[325013758,1714504256883,-500.0,0.00035616,7]
[325013760,1714504256892,-500.0,0.00035616,7]
[325013762,1714504256901,-566.67,0.00035616,7]
[325013764,1714504256910,-500.0,0.00035616,7]
[325013767,1714504256920,-510.48,0.00035616,7]
[325013769,1714504256933,-500.0,0.00035616,7]
[325013771,1714504256942,-712.4,0.00035616,7]
[325013773,1714504256952,-2234.6,0.00035616,7]
[325013775,1714504256962,-604.01,0.00035616,7]
[325013777,1714504256971,-500.0,0.00035616,7]
[325013779,1714504256980,-572.86,0.00035616,7]
[325013780,1714504256990,-500.0,0.00035616,7]
[325013783,1714504257002,-500.0,0.00035616,7]
[325013785,1714504257011,-1108.83,0.00035616,7]
[325013786,1714504257020,-500.0,0.00035616,7]
[325013788,1714504257032,-1236.29,0.00035616,7]
[325013790,1714504257041,-734.06,0.00035616,7]
[325013792,1714504257050,-500.0,0.00035616,7]
[325013794,1714504257059,-509.18,0.00035616,7]
[325013796,1714504257068,-583.24,0.00035616,7]
[325013799,1714504257077,-725.26,0.00035616,7]
[325013801,1714504257086,-890.23,0.00035616,7]
[325013803,1714504257096,-500.0,0.00035616,7]
[325013805,1714504257105,-500.0,0.00035616,7]
[325013807,1714504257114,-500.0,0.00035616,7]
[325013809,1714504257123,-583.72,0.00035616,7]
[325013811,1714504257132,-263.62375556,0.00035616,7]
[325013813,1714504257142,-560.52,0.00035616,7]
[325013815,1714504257151,-500.0,0.00035616,7]
[325013817,1714504257161,-500.0,0.00035616,7]
[325013819,1714504257170,-2317.85,0.00035616,7]
[325013821,1714504257179,-500.0,0.00035616,7]
[325013823,1714504257189,-500.0,0.00035616,7]
[325013825,1714504257198,-637.11,0.00035616,7]
[325013827,1714504257207,-500.0,0.00035616,7]
[325013829,1714504257216,-1332.28786,0.00035616,120]
[325013831,1714504257225,-166.72715655,0.00035655,4]
[325013833,1714504257235,-150.0,0.00035697,2]
[325013835,1714504257244,-211.33443891,0.0003589,2]
[325013837,1714504257253,-500.0,0.0003589,7]
[325013839,1714504257263,-730.16,0.0003589,7]
[325013841,1714504257272,-886.92,0.0003589,7]
[325013844,1714504257285,-560.1,0.0003589,7]
[325013846,1714504257294,-500.0,0.0003589,7]
[325013848,1714504257303,-500.0,0.0003589,7]
[325013849,1714504257312,-624.72,0.0003589,7]
[325013851,1714504257321,-500.0,0.0003589,7]
[325013853,1714504257330,-500.0,0.0003589,7]
[325013855,1714504257339,-500.0,0.0003589,7]
[325013857,1714504257348,-500.0,0.0003589,7]
[325013859,1714504257357,-632.59230456,0.0003589,7]
[325013862,1714504257368,-566.67,0.0003589,7]
[325013863,1714504257378,-500.0,0.0003589,7]
[325013866,1714504257389,-510.48,0.0003589,7]
[325013868,1714504257399,-500.0,0.0003589,7]
[325013869,1714504257409,-712.4,0.0003589,7]
[325013871,1714504257418,-2234.6,0.0003589,7]
[325013873,1714504257428,-604.01,0.0003589,7]
[325013876,1714504257437,-500.0,0.0003589,7]
[325013878,1714504257447,-572.86,0.0003589,7]
[325013880,1714504257456,-500.0,0.0003589,7]
[325013882,1714504257465,-1108.83,0.0003589,7]
[325013884,1714504257475,-500.0,0.0003589,7]
[325013886,1714504257484,-1236.29,0.0003589,7]
[325013887,1714504257493,-734.06,0.0003589,7]
[325013890,1714504257503,-500.0,0.0003589,7]
[325013892,1714504257512,-509.18,0.0003589,7]
[325013894,1714504257521,-583.24,0.0003589,7]
[325013895,1714504257531,-725.26,0.0003589,7]
[325013897,1714504257540,-890.23,0.0003589,7]
[325013900,1714504257550,-500.0,0.0003589,7]
[325013901,1714504257559,-500.0,0.0003589,7]